fUST/lending_fUST_20250428
["ID","MTS","AMOUNT","RATE_DAILY","PERIOD"]
[359203699,1745809839020,-400.0,0.00032876,2]
[359203700,1745809839029,-500.0,0.00032876,2]
[359203701,1745809839038,-400.0,0.00032876,2]
[359203702,1745809839047,-400.0,0.00032876,2]
[359203703,1745809839055,-400.0,0.00032876,2]
[359203704,1745809839064,-400.0,0.00032876,2]
[359203705,1745809839073,-487.20698309,0.00032876,2]
[359203707,1745809839082,-400.0,0.00032876,2]
[359203709,1745809839092,-400.0,0.00032876,2]
[359203711,1745809839101,-400.0,0.00032876,2]
[359203712,1745809839110,-400.0,0.00032876,2]
[359203714,1745809839119,-303.94608064,0.00032876,2]
[359203716,1745809839128,-400.0,0.00032876,2]
[359203718,1745809839138,-509.28008889,0.00032876,2]
[359203720,1745809839147,-400.0,0.00032876,2]
[359203722,1745809839156,-400.0,0.00032876,2]
[359203724,1745809839166,-503.33252317,0.00032876,2]
[359203726,1745809839175,-400.0,0.00032876,2]
[359203728,1745809839184,-400.0,0.00032876,2]
[359203730,1745809839193,-506.99311906,0.00032876,2]
[359203732,1745809839203,-400.0,0.00032876,2]
[359203735,1745809839215,-400.0,0.00032876,2]
[359203736,1745809839223,-400.0,0.00032876,2]
[359203738,1745809839232,-400.0,0.00032876,2]
[359203740,1745809839242,-500.0,0.00032876,2]
[359203742,1745809839251,-400.0,0.00032876,2]
[359203744,1745809839260,-300.0,0.00032876,2]
[359203746,1745809839269,-505.17590671,0.00032876,2]
[359203748,1745809839278,-488.9,0.00032876,2]
[359203750,1745809839287,-400.0,0.00032876,2]
[359203752,1745809839296,-400.0,0.00032876,2]
[359203754,1745809839305,-507.88392715,0.00032876,2]
[359203756,1745809839315,-400.0,0.00032876,2]
[359203758,1745809839324,-400.0,0.00032876,2]
[359203760,1745809839334,-400.0,0.00032876,2]
[359203762,1745809839343,-400.0,0.00032876,2]
[359203764,1745809839352,-400.0,0.00032876,2]
[359203766,1745809839361,-470.25850877,0.00032876,2]
[359203768,1745809839371,-500.0,0.00032876,2]
[359203770,1745809839380,-400.0,0.00032876,2]
[359203772,1745809839391,-400.0,0.00032876,2]
[359203774,1745809839401,-400.0,0.00032876,2]
[359203775,1745809839410,-503.1113878,0.00032876,2]
[359203777,1745809839420,-502.51414049,0.00032876,2]
[359203779,1745809839429,-502.230257,0.00032876,2]
[359203781,1745809839438,-400.0,0.00032876,2]
[359203782,1745809839447,-501.06697589,0.00032876,2]
[359203784,1745809839457,-508.09050878,0.00032876,2]
[359203786,1745809839466,-400.0,0.00032876,2]
[359203787,1745809839475,-400.0,0.00032876,2]
[359203788,1745809839485,-507.32177544,0.00032876,2]
[359203789,1745809839494,-500.0,0.00032876,2]
[359203790,1745809839504,-378.17910817,0.00032876,2]
[359203791,1745809839515,-400.0,0.00032876,2]
[359203792,1745809839526,-400.0,0.00032876,2]
[359203793,1745809839537,-503.25415729,0.00032876,2]
[359203794,1745809839547,-400.0,0.00032876,2]
[359203795,1745809839557,-500.0,0.00032876,2]
[359203796,1745809839567,-400.0,0.00032876,2]
[359203797,1745809839576,-400.0,0.00032876,2]
[359203798,1745809839587,-500.338909,0.00032876,2]
[359203799,1745809839596,-303.90443651,0.00032876,2]
[359203800,1745809839605,-500.0,0.00032876,2]
[359203801,1745809839615,-512.7283189,0.00032876,120]
[359203802,1745809839624,-500.89350143,0.00032876,2]
[359203803,1745809839633,-500.0,0.00032876,2]
[359203804,1745809839642,-400.0,0.00032876,2]
[359203805,1745809839651,-400.0,0.00032876,2]
[359203806,1745809839660,-1000.0,0.00032876,2]
[359203807,1745809839670,-400.0,0.00032876,2]
[359203808,1745809839680,-507.26457768,0.00032876,2]
[359203809,1745809839690,-503.36956594,0.00032876,2]
[359203810,1745809839699,-400.0,0.00032876,2]
[359203811,1745809839708,-501.44869448,0.00032876,2]
[359203813,1745809839717,-400.0,0.00032876,2]
[359203815,1745809839727,-505.20386155,0.00032876,2]
[359203816,1745809839737,-502.7449212,0.00032876,2]
[359203818,1745809839747,-400.0,0.00032876,2]
[359203820,1745809839758,-400.0,0.00032876,2]
[359203822,1745809839767,-400.0,0.00032876,2]
[359203824,1745809839776,-500.60354667,0.00032876,2]
[359203826,1745809839785,-504.15765966,0.00032876,2]
[359203828,1745809839795,-400.0,0.00032876,2]
[359203830,1745809839804,-509.431972,0.00032876,2]
[359203832,1745809839813,-400.0,0.00032876,2]
[359203834,1745809839822,-506.56512089,0.00032876,2]
[359203835,1745809839832,-503.5678323,0.00032876,2]
[359203837,1745809839842,-400.0,0.00032876,2]
[359203839,1745809839852,-502.82189837,0.00032876,2]
[359203841,1745809839862,-400.0,0.00032876,2]
[359203843,1745809839871,-400.0,0.00032876,2]
[359203845,1745809839881,-500.0,0.00032876,2]
[359203846,1745809839890,-400.0,0.00032876,2]
[359203848,1745809839900,-506.84689042,0.00032876,2]
[359203849,1745809839910,-503.58667273,0.00032876,2]
[359203850,1745809839920,-505.31903411,0.00032876,2]
[359203851,1745809839929,-400.0,0.00032876,2]
[359203852,1745809839938,-502.65196566,0.00032876,2]
[359203853,1745809839947,-502.54984958,0.00032876,2]
[359203854,1745809839956,-506.20443544,0.00032876,2]
[359203855,1745809839966,-400.0,0.00032876,2]
[359203856,1745809839975,-400.0,0.00032876,2]
[359203857,1745809839984,-500.66997536,0.00032876,2]
[359203858,1745809839994,-500.0,0.00032876,2]
[359203859,1745809840003,-400.0,0.00032876,2]
[359203860,1745809840012,-400.0,0.00032876,2]
[359203861,1745809840021,-400.0,0.00032876,2]
[359203862,1745809840031,-505.9664427,0.00032876,2]
[359203863,1745809840040,-400.0,0.00032876,2]
[359203864,1745809840050,-400.0,0.00032876,2]
[359203865,1745809840059,-502.48881874,0.00032876,2]
[359203866,1745809840069,-500.71948553,0.00032876,2]
[359203867,1745809840078,-500.0,0.00032876,2]
[359203869,1745809840088,-246.07,0.00032876,2]
[359203870,1745809840098,-500.0,0.00032876,2]
[359203871,1745809840108,-500.35837171,0.00032876,2]
[359203872,1745809840117,-191.89799973,0.00032876,2]
[359203873,1745809840126,-500.69138339,0.00032876,2]
[359203877,1745809840137,-400.0,0.00032876,2]
[359203878,1745809840263,-500.0,0.00032876,2]
[359203879,1745809840273,-400.0,0.00032876,2]
[359203880,1745809840282,-400.0,0.00032876,2]
[359203881,1745809840291,-400.0,0.00032876,2]
[359203882,1745809840300,-400.0,0.00032876,2]
[359203883,1745809840310,-400.0,0.00032876,2]
[359203884,1745809840319,-501.15689998,0.00032876,2]
[359203885,1745809840329,-300.0,0.00032876,2]
[359203886,1745809840339,-400.0,0.00032876,2]
[359203887,1745809840348,-400.0,0.00032876,2]
[359203888,1745809840357,-400.0,0.00032876,2]
[359203889,1745809840367,-400.0,0.00032876,2]
[359203890,1745809840377,-400.0,0.00032876,2]
[359203891,1745809840386,-444.04953419,0.00032876,2]
[359203892,1745809840395,-400.0,0.00032876,2]
[359203893,1745809840404,-500.80868062,0.00032876,2]
[359203894,1745809840414,-400.0,0.00032876,2]
[359203895,1745809840423,-314.78828047,0.00032876,2]
[359203896,1745809840432,-400.0,0.00032876,2]
[359203897,1745809840441,-500.0,0.00032876,2]
[359203898,1745809840450,-503.13806857,0.00032876,2]
[359203899,1745809840458,-500.0,0.00032876,2]
[359203900,1745809840467,-500.0,0.00032876,2]
[359203901,1745809840475,-500.0,0.00032876,2]
[359203902,1745809840483,-400.0,0.00032876,2]
[359203903,1745809840490,-504.31809313,0.00032876,2]
[359203904,1745809840498,-400.0,0.00032876,2]
[359203905,1745809840506,-170.52557819,0.00032876,2]
[359203906,1745809840514,-502.01716287,0.00032876,2]
[359203907,1745809840522,-400.0,0.00032876,2]
[359203908,1745809840530,-400.0,0.00032876,2]
[359203909,1745809840539,-509.8419672,0.00032876,2]
[359203910,1745809840547,-400.0,0.00032876,2]
[359203911,1745809840556,-504.18642505,0.00032876,2]
[359203912,1745809840565,-400.0,0.00032876,2]
[359203913,1745809840574,-400.0,0.00032876,2]
[359203914,1745809840583,-502.86398289,0.00032876,2]
[359203915,1745809840593,-502.19450553,0.00032876,2]
[359203916,1745809840602,-400.0,0.00032876,2]
[359203917,1745809840610,-400.0,0.00032876,2]
[359203918,1745809840620,-502.38959877,0.00032876,2]
[359203919,1745809840630,-400.0,0.00032876,2]
[359203920,1745809840639,-400.0,0.00032876,2]
[359203921,1745809840649,-503.38661022,0.00032876,2]
[359203922,1745809840658,-400.0,0.00032876,2]
[359203923,1745809840667,-400.0,0.00032876,2]
[359203924,1745809840675,-400.0,0.00032876,2]
[359203925,1745809840686,-400.0,0.00032876,2]
[359203926,1745809840695,-400.0,0.00032876,2]
[359203927,1745809840705,-400.0,0.00032876,2]
[359203928,1745809840716,-400.0,0.00032876,2]
[359203929,1745809840725,-500.0,0.00032876,2]
[359203930,1745809840735,-506.49337869,0.00032876,2]
[359203931,1745809840744,-502.95863838,0.00032876,2]
[359203932,1745809840753,-500.0,0.00032876,2]
[359203933,1745809840762,-503.47938581,0.00032876,2]
[359203934,1745809840772,-506.46724938,0.00032876,2]
[359203935,1745809840781,-501.10810272,0.00032876,2]
[359203936,1745809840790,-500.0,0.00032876,2]
[359203937,1745809840799,-503.51615354,0.00032876,2]
[359203938,1745809840809,-502.83602165,0.00032876,2]
[359203939,1745809840818,-400.0,0.00032876,2]
[359203940,1745809840827,-400.0,0.00032876,2]
[359203941,1745809840837,-400.0,0.00032876,2]
[359203942,1745809840847,-269.4071912,0.00032876,2]
[359203943,1745809840857,-501.44354141,0.00032876,2]
[359203944,1745809840866,-300.0,0.00032876,2]
[359203945,1745809840875,-542.116126,0.00032876,2]
[359203946,1745809840884,-400.0,0.00032876,2]
[359203947,1745809840894,-400.0,0.00032876,2]
[359203948,1745809840904,-400.0,0.00032876,2]
[359203949,1745809840912,-300.0,0.00032876,2]
[359203950,1745809840920,-400.0,0.00032876,2]
[359203951,1745809840928,-400.0,0.00032876,2]
[359203952,1745809840935,-400.0,0.00032876,2]
[359203953,1745809840944,-400.0,0.00032876,2]
[359203954,1745809840952,-400.0,0.00032876,2]
[359203955,1745809840960,-440.25524261,0.00032876,2]
[359203956,1745809840969,-400.0,0.00032876,2]
[359203957,1745809840978,-400.0,0.00032876,2]
[359203958,1745809840987,-400.0,0.00032876,2]
[359203959,1745809840996,-165.58220671,0.00032876,2]
[359203960,1745809841006,-506.4408039,0.00032876,2]
[359203961,1745809841015,-299.56432562,0.00032876,2]
[359203962,1745809841025,-502.01397667,0.00032876,2]
[359203963,1745809841034,-503.59151416,0.00032876,2]
[359203964,1745809841043,-400.0,0.00032876,2]
[359203965,1745809841052,-504.37992023,0.00032876,2]
[359203966,1745809841062,-400.0,0.00032876,2]
[359203967,1745809841071,-400.0,0.00032876,2]
[359203968,1745809841080,-507.18294105,0.00032876,2]
[359203969,1745809841090,-502.76157246,0.00032876,2]
[359203970,1745809841099,-400.0,0.00032876,2]
[359203971,1745809841108,-400.0,0.00032876,2]
[359203972,1745809841117,-172.02400006,0.00032876,2]
[359203973,1745809841127,-400.0,0.00032876,2]
[359203974,1745809841136,-500.49383964,0.00032876,2]
[359203975,1745809841145,-400.0,0.00032876,2]
[359203976,1745809841155,-508.27275613,0.00032876,2]
[359203977,1745809841165,-503.4718269,0.00032876,2]
[359203978,1745809841174,-400.0,0.00032876,2]
[359203979,1745809841183,-400.0,0.00032876,2]
[359203980,1745809841193,-500.70753583,0.00032876,2]
[359203981,1745809841201,-400.0,0.00032876,2]
[359203982,1745809841210,-501.6054833,0.00032876,2]
[359203983,1745809841218,-400.0,0.00032876,2]
[359203984,1745809841226,-400.0,0.00032876,2]
[359203985,1745809841234,-400.0,0.00032876,2]
[359203986,1745809841243,-400.0,0.00032876,2]
[359203987,1745809841253,-400.0,0.00032876,2]
[359203988,1745809841262,-501.46756585,0.00032876,2]
[359203989,1745809841271,-400.0,0.00032876,2]
[359203990,1745809841281,-502.03805757,0.00032876,2]
[359203991,1745809841291,-400.0,0.00032876,2]
[359203992,1745809841300,-400.0,0.00032876,2]
[359203993,1745809841309,-503.02788746,0.00032876,2]
[359203994,1745809841319,-400.0,0.00032876,2]
[359203995,1745809841329,-400.0,0.00032876,2]
[359203996,1745809841338,-400.0,0.00032876,2]
[359203997,1745809841348,-400.0,0.00032876,2]
[359203998,1745809841358,-509.86154018,0.00032876,2]
[359203999,1745809841369,-400.0,0.00032876,2]
[359204000,1745809841379,-507.32972753,0.00032876,2]
[359204001,1745809841388,-400.0,0.00032876,2]
[359204002,1745809841398,-400.0,0.00032876,2]
[359204003,1745809841407,-400.0,0.00032876,2]
[359204004,1745809841417,-505.02800321,0.00032876,2]
[359204005,1745809841428,-400.0,0.00032876,2]
[359204006,1745809841437,-500.94522763,0.00032876,2]
[359204007,1745809841447,-502.44125764,0.00032876,2]
[359204008,1745809841456,-503.52815401,0.00032876,2]
[359204009,1745809841465,-400.0,0.00032876,2]
[359204010,1745809841474,-400.0,0.00032876,2]
[359204011,1745809841483,-504.20420386,0.00032876,2]
[359204012,1745809841493,-400.0,0.00032876,2]
[359204013,1745809841502,-502.62238594,0.00032876,2]
[359204014,1745809841511,-400.0,0.00032876,2]
[359204015,1745809841520,-400.0,0.00032876,2]
[359204016,1745809841529,-505.73233819,0.00032876,2]
[359204017,1745809841538,-400.0,0.00032876,2]
[359204018,1745809841547,-400.0,0.00032876,2]
[359204019,1745809841556,-400.0,0.00032876,2]
[359204020,1745809841565,-500.0,0.00032876,2]
[359204021,1745809841574,-400.0,0.00032876,2]
[359204022,1745809841583,-505.97868927,0.00032876,2]
[359204023,1745809841592,-400.0,0.00032876,2]
[359204024,1745809841604,-400.0,0.00032876,2]
[359204025,1745809841614,-400.0,0.00032876,2]
[359204026,1745809841624,-400.0,0.00032876,2]
[359204027,1745809841633,-498.72677436,0.00032876,2]
[359204028,1745809841644,-400.0,0.00032876,2]
[359204029,1745809841652,-503.61952921,0.00032876,2]
[359204030,1745809841662,-400.0,0.00032876,2]
[359204031,1745809841672,-384.87019497,0.00032876,2]
[359204032,1745809841682,-400.0,0.00032876,2]
[359204033,1745809841692,-400.0,0.00032876,2]
[359204034,1745809841701,-400.0,0.00032876,2]
[359204035,1745809841710,-400.0,0.00032876,2]
[359204036,1745809841719,-400.0,0.00032876,2]
[359204037,1745809841731,-502.45292438,0.00032876,2]
[359204038,1745809841741,-400.0,0.00032876,2]
[359204039,1745809841751,-400.0,0.00032876,2]
[359204040,1745809841762,-400.0,0.00032876,2]
[359204041,1745809841771,-500.48996801,0.00032876,2]
[359204042,1745809841780,-400.0,0.00032876,2]
[359204043,1745809841791,-400.0,0.00032876,2]
[359204044,1745809841800,-400.0,0.00032876,2]
[359204045,1745809841809,-400.0,0.00032876,2]
[359204046,1745809841819,-500.0,0.00032876,2]
[359204047,1745809841828,-400.0,0.00032876,2]
[359204048,1745809841837,-197.62514844,0.00032876,2]
[359204049,1745809841846,-501.56798781,0.00032876,2]
[359204050,1745809841855,-400.0,0.00032876,2]
[359204051,1745809841865,-400.0,0.00032876,2]
[359204052,1745809841873,-400.0,0.00032876,2]
[359204053,1745809841882,-501.09991588,0.00032876,2]
[359204054,1745809841891,-400.0,0.00032876,2]
[359204055,1745809841901,-501.804325,0.00032876,2]
[359204056,1745809841912,-400.0,0.00032876,2]
[359204057,1745809841921,-400.0,0.00032876,2]
[359204058,1745809841931,-400.0,0.00032876,2]
[359204059,1745809841940,-400.0,0.00032876,2]
[359204060,1745809841950,-400.0,0.00032876,2]
[359204061,1745809841960,-503.79302745,0.00032876,2]
[359204062,1745809841969,-400.0,0.00032876,2]
[359204063,1745809841978,-502.06919339,0.00032876,2]
[359204064,1745809841987,-400.0,0.00032876,2]
[359204065,1745809841997,-503.98468393,0.00032876,2]
[359204066,1745809842007,-400.0,0.00032876,2]
[359204067,1745809842015,-400.0,0.00032876,2]
[359204068,1745809842024,-504.01705873,0.00032876,2]
[359204069,1745809842034,-501.61541445,0.00032876,2]
[359204070,1745809842043,-400.0,0.00032876,2]
[359204071,1745809842053,-400.0,0.00032876,2]
[359204072,1745809842062,-400.0,0.00032876,2]
[359204073,1745809842072,-200.57941477,0.00032876,2]
[359204074,1745809842084,-400.0,0.00032876,2]
[359204075,1745809842093,-400.0,0.00032876,2]
[359204076,1745809842103,-400.0,0.00032876,2]
[359204077,1745809842113,-301.26143887,0.00032876,2]
[359204078,1745809842123,-501.42281392,0.00032876,2]
[359204079,1745809842134,-417.95,0.00032876,2]
[359204080,1745809842143,-400.0,0.00032876,2]
[359204081,1745809842152,-400.0,0.00032876,2]
[359204082,1745809842161,-897.01,0.00032876,2]
[359204083,1745809842171,-400.0,0.00032876,2]
[359204084,1745809842180,-400.0,0.00032876,2]
[359204085,1745809842190,-503.21943721,0.00032876,2]
[359204086,1745809842199,-400.0,0.00032876,2]
[359204087,1745809842208,-400.0,0.00032876,2]
[359204088,1745809842218,-502.10184368,0.00032876,2]
[359204089,1745809842227,-501.2887558,0.00032876,2]
[359204090,1745809842236,-507.87176692,0.00032876,2]
[359204091,1745809842247,-502.98215689,0.00032876,2]
[359204092,1745809842257,-400.0,0.00032876,2]
[359204093,1745809842267,-393.75339431,0.00032876,2]
[359204094,1745809842276,-400.0,0.00032876,2]
[359204095,1745809842286,-400.0,0.00032876,2]
[359204096,1745809842295,-501.40863428,0.00032876,2]
[359204097,1745809842304,-505.81923906,0.00032876,2]
[359204098,1745809842314,-400.0,0.00032876,2]
[359204099,1745809842324,-400.0,0.00032876,2]
[359204100,1745809842334,-500.9053445,0.00032876,2]
[359204101,1745809842346,-400.0,0.00032876,2]
[359204102,1745809842355,-501.01745025,0.00032876,2]
[359204103,1745809842368,-503.09814251,0.00032876,2]
[359204104,1745809842378,-400.0,0.00032876,2]
[359204105,1745809842388,-504.16022462,0.00032876,2]
[359204106,1745809842398,-504.27919905,0.00032876,2]
[359204107,1745809842408,-400.0,0.00032876,2]
[359204108,1745809842418,-501.90280292,0.00032876,2]
[359204109,1745809842427,-501.47565888,0.00032876,2]
[359204110,1745809842437,-400.0,0.00032876,2]
[359204111,1745809842447,-400.0,0.00032876,2]
[359204112,1745809842457,-400.0,0.00032876,2]
[359204113,1745809842466,-400.0,0.00032876,2]
[359204114,1745809842476,-500.70463981,0.00032876,2]
[359204115,1745809842486,-502.92842454,0.00032876,2]
[359204116,1745809842496,-400.0,0.00032876,2]
[359204117,1745809842506,-400.0,0.00032876,2]
[359204118,1745809842515,-400.0,0.00032876,2]
[359204119,1745809842525,-504.3241355,0.00032876,2]
[359204120,1745809842535,-400.0,0.00032876,2]
[359204121,1745809842544,-400.0,0.00032876,2]
[359204122,1745809842554,-400.0,0.00032876,2]
[359204123,1745809842563,-400.0,0.00032876,2]
[359204124,1745809842574,-303.2495256,0.00032876,2]
[359204125,1745809842583,-400.0,0.00032876,2]
[359204126,1745809842592,-592.69,0.00032876,2]
[359204127,1745809842602,-400.0,0.00032876,2]
[359204128,1745809842619,-400.0,0.00032876,2]
[359204129,1745809842634,-400.0,0.00032876,2]
[359204130,1745809842646,-504.32622505,0.00032876,2]
[359204131,1745809842657,-400.0,0.00032876,2]
[359204132,1745809842669,-545.06,0.00032876,2]
[359204133,1745809842680,-504.60611171,0.00032876,2]
[359204135,1745809842692,-400.0,0.00032876,2]
[359204137,1745809842702,-400.0,0.00032876,2]
[359204139,1745809842711,-503.0211673,0.00032876,2]
[359204140,1745809842720,-400.0,0.00032876,2]
[359204141,1745809842730,-400.0,0.00032876,2]
[359204142,1745809842739,-400.0,0.00032876,2]
[359204143,1745809842748,-400.0,0.00032876,2]
[359204144,1745809842759,-507.94294035,0.00032876,2]
[359204145,1745809842768,-830.13,0.00032876,2]
[359204146,1745809842777,-503.29883282,0.00032876,2]
[359204147,1745809842786,-400.0,0.00032876,2]
[359204148,1745809842796,-400.0,0.00032876,2]
[359204149,1745809842805,-400.0,0.00032876,2]
[359204150,1745809842814,-400.0,0.00032876,2]
[359204151,1745809842824,-400.0,0.00032876,2]
[359204152,1745809842834,-400.0,0.00032876,2]
[359204153,1745809842843,-365.99721662,0.00032876,2]
[359204154,1745809842852,-400.0,0.00032876,2]
[359204155,1745809842861,-400.0,0.00032876,2]
[359204156,1745809842870,-503.7431876,0.00032876,2]
[359204157,1745809842879,-515.46392798,0.00032876,2]
[359204158,1745809842888,-400.0,0.00032876,2]
[359204159,1745809842897,-400.0,0.00032876,2]
[359204160,1745809842906,-519.54213456,0.00032876,2]
[359204161,1745809842915,-400.0,0.00032876,2]
[359204162,1745809842924,-400.0,0.00032876,2]
[359204163,1745809842933,-400.0,0.00032876,2]
[359204164,1745809842942,-400.0,0.00032876,2]
[359204165,1745809842952,-400.0,0.00032876,2]
[359204166,1745809842962,-400.0,0.00032876,2]
[359204167,1745809842971,-400.0,0.00032876,2]
[359204168,1745809842980,-400.0,0.00032876,2]
[359204169,1745809842989,-409.70691755,0.00032876,2]
[359204170,1745809842999,-400.0,0.00032876,2]
[359204171,1745809843009,-400.0,0.00032876,2]
[359204172,1745809843018,-400.0,0.00032876,2]
[359204173,1745809843027,-400.0,0.00032876,2]
[359204174,1745809843037,-400.0,0.00032876,2]
[359204175,1745809843167,-400.0,0.00032876,2]
[359204176,1745809843177,-500.83431684,0.00032876,2]
[359204177,1745809843187,-400.0,0.00032876,2]
[359204178,1745809843196,-400.0,0.00032876,2]
[359204179,1745809843206,-510.1465928,0.00032876,2]
[359204180,1745809843216,-400.0,0.00032876,2]
[359204181,1745809843226,-509.57240259,0.00032876,2]
[359204182,1745809843235,-400.0,0.00032876,2]
[359204183,1745809843244,-400.0,0.00032876,2]
[359204184,1745809843254,-400.0,0.00032876,2]
[359204185,1745809843264,-1000.0,0.00032877,5]
[359204186,1745809843273,-769.76,0.00032899,2]
[359204187,1745809843283,-769.76,0.00032899,2]
[359204188,1745809843292,-769.76,0.00032899,2]
[359204190,1745809843301,-769.76,0.00032899,2]
[359204192,1745809843310,-769.76,0.00032899,2]
[359204194,1745809843320,-769.76,0.00032899,2]
[359204196,1745809843329,-769.76,0.00032899,2]
[359204198,1745809843338,-769.76,0.00032899,2]
[359204199,1745809843348,-769.76,0.00032899,2]
[359204200,1745809843357,-769.76,0.00032899,2]
[359204201,1745809843368,-843.41,0.000329,7]
[359204202,1745809843378,-145941.29,0.000329,30]
[359204203,1745809843387,-260.0,0.00033,2]
[359204204,1745809843397,-260.0,0.00033,2]
[359204205,1745809843406,-200.0,0.0003315,2]
[359204207,1745809843415,-203.83131042,0.0003315,2]
[359204208,1745809843425,-200.0,0.0003315,2]
[359204209,1745809843434,-209.75723227,0.0003315,2]
[359204210,1745809843444,-400.0,0.0003315,2]
[359204211,1745809843453,-210.71971212,0.0003315,2]
[359204212,1745809843463,-200.0,0.0003315,2]
[359204213,1745809843473,-204.17065897,0.0003315,2]
[359204214,1745809843484,-206.99839806,0.0003315,2]
[359204215,1745809843494,-200.0,0.0003315,2]
[359204216,1745809843504,-400.0,0.0003315,2]
[359204217,1745809843513,-207.33552569,0.0003315,2]
[359204218,1745809843524,-208.03296795,0.0003315,2]
[359204219,1745809843534,-206.23036345,0.0003315,2]
[359204220,1745809843545,-205.19292432,0.0003315,2]
[359204221,1745809843555,-206.82702246,0.0003315,2]
[359204222,1745809843564,-203.75674153,0.0003315,2]
[359204223,1745809843574,-205.71165671,0.0003315,2]
[359204224,1745809843583,-400.0,0.0003315,2]
[359204225,1745809843593,-204.36432316,0.0003315,2]
[359204226,1745809843603,-204.1727272,0.0003315,2]
[359204227,1745809843612,-400.0,0.0003315,2]
[359204228,1745809843621,-347.93,0.0003315,2]
[359204229,1745809843631,-207.45125657,0.0003315,2]
[359204230,1745809843641,-204.53325592,0.0003315,2]
[359204231,1745809843651,-200.0,0.0003315,2]
[359204232,1745809843660,-400.0,0.0003315,2]
[359204233,1745809843670,-203.04092463,0.0003315,2]
[359204234,1745809843680,-250.39994763,0.0003315,2]
[359204235,1745809843691,-214.55395743,0.0003315,2]
[359204236,1745809843711,-212.71769265,0.0003315,2]
[359204237,1745809843721,-500.0,0.0003315,2]
[359204238,1745809843733,-201.97093657,0.0003315,2]
[359204239,1745809843743,-207.78616293,0.0003315,2]
[359204240,1745809843756,-400.0,0.0003315,2]
[359204241,1745809843767,-208.81677708,0.0003315,2]
[359204242,1745809843776,-205.54750228,0.0003315,2]
[359204243,1745809843786,-204.41861147,0.0003315,2]
[359204244,1745809843796,-205.21669081,0.0003315,2]
[359204245,1745809843805,-204.42303344,0.0003315,2]
[359204246,1745809843815,-204.63717899,0.0003315,2]
[359204247,1745809843825,-400.0,0.0003315,2]
[359204248,1745809843834,-400.0,0.0003315,2]
[359204249,1745809843846,-400.0,0.0003315,2]
[359204250,1745809843856,-167.35227657,0.0003315,2]
[359204251,1745809843866,-400.0,0.0003315,2]
[359204252,1745809843876,-400.0,0.0003315,2]
[359204253,1745809843885,-400.0,0.0003315,2]
[359204254,1745809843895,-400.0,0.0003315,2]
[359204255,1745809843904,-400.0,0.0003315,2]
[359204256,1745809843914,-400.0,0.0003315,2]
[359204257,1745809843924,-400.0,0.0003315,2]
[359204258,1745809843933,-400.0,0.0003315,2]
[359204259,1745809843943,-400.0,0.0003315,2]
[359204260,1745809843953,-351.68309348,0.0003315,2]
[359204261,1745809843962,-209.21284683,0.0003315,2]
[359204262,1745809843971,-400.0,0.0003315,2]
[359204263,1745809843982,-400.0,0.0003315,2]
[359204264,1745809843992,-177.17980388,0.0003315,2]
[359204265,1745809844002,-397.58,0.0003315,2]
[359204266,1745809844012,-200.0,0.0003315,2]
[359204267,1745809844022,-429.07214713,0.0003315,2]